Department Family,Entity,Date,Expense Type,Expense Area,Supplier,Transaction Number,Amount,,
DOH,London Ambulance Service NHS Trust,01/02/2013,Accident Repairs,Deptford (N1) Station,R. And J.Motors Ltd,36142,28932.02,,
DOH,London Ambulance Service NHS Trust,01/02/2013,Technical Support - Contract,Cts Contract,Communication And Technical Ser,36150,58151.15,,
DOH,London Ambulance Service NHS Trust,04/02/2013,Private Ambulance Hire,Deputy Director Of Operations,X9 Services,36407,42537.75,,
DOH,London Ambulance Service NHS Trust,05/02/2013,Buildings,Capital,Scg (Contracting) Ltd,37661,42889.56,,
DOH,London Ambulance Service NHS Trust,05/02/2013,Cleaning Of Premises,Estate Management,Lakethorne Ltd,37625,51434.32,,
DOH,London Ambulance Service NHS Trust,05/02/2013,Computer Software Maintenance,Im&T Systems Support,Microsoft Ltd,37325,54490.00,,
DOH,London Ambulance Service NHS Trust,05/02/2013,Lease Costs For A&E Vehicles,22 Ambulance 2012/13,De Lage Landen Leasing Ltd,37634,104430.20,,
DOH,London Ambulance Service NHS Trust,05/02/2013,Private Ambulance Hire,Deputy Director Of Operations,Ast Ambulance Service Ltd,37462,50055.00,,
DOH,London Ambulance Service NHS Trust,05/02/2013,Private Ambulance Hire,Deputy Director Of Operations,X9 Services,37244,31878.00,,
DOH,London Ambulance Service NHS Trust,07/02/2013,Consultancy Fees,Deputy Director Of Operations,Orh Ltd,37926,27504.00,,
DOH,London Ambulance Service NHS Trust,07/02/2013,Private Ambulance Hire,Deputy Director Of Operations,Ast Ambulance Service Ltd,37919,51018.50,,
DOH,London Ambulance Service NHS Trust,07/02/2013,Private Ambulance Hire,Deputy Director Of Operations,Ast Ambulance Service Ltd,37920,46577.50,,
DOH,London Ambulance Service NHS Trust,07/02/2013,Private Ambulance Hire,Deputy Director Of Operations,Ast Ambulance Service Ltd,37921,55855.00,,
DOH,London Ambulance Service NHS Trust,07/02/2013,Private Ambulance Hire,Deputy Director Of Operations,Ast Ambulance Service Ltd,37922,43050.00,,
DOH,London Ambulance Service NHS Trust,07/02/2013,Private Ambulance Hire,Deputy Director Of Operations,Ast Ambulance Service Ltd,37923,32307.50,,
DOH,London Ambulance Service NHS Trust,07/02/2013,Private Ambulance Hire,Deputy Director Of Operations,Mediforce Ltd,37820,29484.38,,
DOH,London Ambulance Service NHS Trust,07/02/2013,Private Ambulance Hire,Deputy Director Of Operations,Mediforce Ltd,37832,25712.50,,
DOH,London Ambulance Service NHS Trust,11/02/2013,Data Network Rental,Networks Non Pay,Bt Global Services,38251,66969.20,,
DOH,London Ambulance Service NHS Trust,11/02/2013,Private Ambulance Hire,Deputy Director Of Operations,X9 Services,38307,28854.00,,
DOH,London Ambulance Service NHS Trust,11/02/2013,Vehicle Recovery,Fleet Support Services,Rac Motoring Services,35736,36000.00,,
DOH,London Ambulance Service NHS Trust,11/02/2013,Vehicles,Capital,Volvo Car Ltd,38295,49463.81,,
DOH,London Ambulance Service NHS Trust,14/02/2013,Cleaning Of Vehicles Makeready,Corporate Logistics,Rentokil,39324,210658.92,,
DOH,London Ambulance Service NHS Trust,14/02/2013,Private Ambulance Hire,Deputy Director Of Operations,X9 Services,39317,26145.00,,
DOH,London Ambulance Service NHS Trust,15/02/2013,General Reserve,Director Of Im&T,Northrop Grumman Information Technology,39952,34938.00,,
DOH,London Ambulance Service NHS Trust,25/02/2013,Cac Tools Maintenance,Software Development & Support,Northrop Grumman Information Technology,41344,49671.76,,
DOH,London Ambulance Service NHS Trust,25/02/2013,Cleaning Of Vehicles Makeready,Sppps Recurrent-Logistics,Lightbridge Support Services,40287,55125.29,,
DOH,London Ambulance Service NHS Trust,25/02/2013,Cleaning Of Vehicles Makeready,Sppps Recurrent-Logistics,Lightbridge Support Services,41455,55125.29,,
DOH,London Ambulance Service NHS Trust,25/02/2013,Defibrillator Purchase,A&E Ambulances 2004/05,De Lage Landen Leasing Ltd,37463,34959.6,,
DOH,London Ambulance Service NHS Trust,25/02/2013,Legal Services Et Legal Costs,Director Of Workforce,Beachcroft Llp,41430,30826.94,,
DOH,London Ambulance Service NHS Trust,25/02/2013,Mobile Phone Rental,Systems &Networks Unidentified,Vodafone Corporate Limited,37741,94440.97,,
DOH,London Ambulance Service NHS Trust,25/02/2013,Rent,Cody Road Ambulance Station,Cbre Ltd,40971,60000.00,,
DOH,London Ambulance Service NHS Trust,25/02/2013,Service Charges,Cody Road Ambulance Station,Cbre Ltd,40971,2901.30,,
DOH,London Ambulance Service NHS Trust,28/02/2013,Co Location,Networks Non Pay,Britsh Telecom (Bt) Plc,42613,34514.53,,
DOH,London Ambulance Service NHS Trust,28/02/2013,Data Network Rental,Networks Non Pay,Bt Plc,42568,232826.68,,
DOH,London Ambulance Service NHS Trust,04/02/2013,Ensign Insurance Debtor,Control Accounts,QBE International Insurance T/A Ensign,3071,228286.5,,
DOH,London Ambulance Service NHS Trust,18/02/2013,BP Control Account,Control Accounts,BP Oil,3426,294073.8,, 
DOH,London Ambulance Service NHS Trust,22/02/2013,Child Care Arrangements,Payroll,Busy Bees Childcare Ltd,3441,28233.35,, 
DOH,London Ambulance Service NHS Trust,26/02/2013,BOC Control Account,Control Accounts,British Oxygen,3451,99716.63,, 
DOH,London Ambulance Service NHS Trust,28/02/2013,BP Control Account,Control Accounts,BP Oil,3469,275554.61,, 
